[Event "Early-Titled-Tuesday-Blitz-January-16-2024"]
[Site "Chess.com"]
[Date "2024.01.16"]
[Round "3"]
[White "Chessdude1987"]
[Black "oganromchess"]
[Result "0-1"]
[WhiteElo "2299"]
[BlackElo "2530"]
[TimeControl "180+1"]
[EndTime "8:31:00 PST"]
[Termination "oganromchess won on time"]

1. e4 {[%clk 0:03:00.9]} 1... e6 {[%clk 0:03:00.1]} 2. d4 {[%clk 0:02:57]} 2...
d5 {[%clk 0:03:00.3]} 3. e5 {[%clk 0:02:47]} 3... c5 {[%clk 0:02:59.7]} 4. c3
{[%clk 0:02:47.2]} 4... Nc6 {[%clk 0:02:59.1]} 5. Nf3 {[%clk 0:02:46.9]} 5...
Nh6 {[%clk 0:02:58.7]} 6. Bd3 {[%clk 0:02:44.5]} 6... cxd4 {[%clk 0:02:57.8]} 7.
O-O {[%clk 0:02:43.4]} 7... Be7 {[%clk 0:02:47.9]} 8. Bxh6 {[%clk 0:02:35.9]}
8... gxh6 {[%clk 0:02:46.5]} 9. c4 {[%clk 0:02:36.8]} 9... dxc4 {[%clk
0:01:59.8]} 10. Bxc4 {[%clk 0:02:37]} 10... Rg8 {[%clk 0:01:58.7]} 11. Nbd2
{[%clk 0:02:35.2]} 11... b6 {[%clk 0:01:33.6]} 12. Rc1 {[%clk 0:02:23.8]} 12...
Bb7 {[%clk 0:01:15.7]} 13. Bb5 {[%clk 0:01:57.2]} 13... Qd5 {[%clk 0:01:09.3]}
14. Qa4 {[%clk 0:01:56.5]} 14... Rc8 {[%clk 0:01:04.3]} 15. Qxd4 {[%clk
0:01:31.1]} 15... Qxb5 {[%clk 0:00:59.4]} 16. Qf4 {[%clk 0:01:13.8]} 16... Bg5
{[%clk 0:00:52.8]} 17. Nxg5 {[%clk 0:01:11.9]} 17... hxg5 {[%clk 0:00:49.4]} 18.
Qe3 {[%clk 0:01:00.8]} 18... Qxe5 {[%clk 0:00:48.5]} 19. Rxc6 {[%clk 0:00:55.5]}
19... Qxe3 {[%clk 0:00:45.2]} 20. Rxc8+ {[%clk 0:00:55]} 20... Bxc8 {[%clk
0:00:46.1]} 21. fxe3 {[%clk 0:00:55.2]} 21... Ke7 {[%clk 0:00:41]} 22. Rc1
{[%clk 0:00:52.3]} 22... Bd7 {[%clk 0:00:33]} 23. Ne4 {[%clk 0:00:49]} 23... f5
{[%clk 0:00:29.5]} 24. Nc3 {[%clk 0:00:45.2]} 24... Rc8 {[%clk 0:00:28.4]} 25.
Re1 {[%clk 0:00:42.9]} 25... Bc6 {[%clk 0:00:27.9]} 26. h4 {[%clk 0:00:41.5]}
26... g4 {[%clk 0:00:27.7]} 27. Kf2 {[%clk 0:00:39]} 27... e5 {[%clk 0:00:20.6]}
28. Kg3 {[%clk 0:00:26.8]} 28... h5 {[%clk 0:00:20.4]} 29. Rf1 {[%clk
0:00:26.7]} 29... Ke6 {[%clk 0:00:20.3]} 30. Rf2 {[%clk 0:00:26.2]} 30... a6
{[%clk 0:00:18.5]} 31. a3 {[%clk 0:00:25.6]} 31... b5 {[%clk 0:00:18.6]} 32. Rd2
{[%clk 0:00:24.6]} 32... Bb7 {[%clk 0:00:16.3]} 33. Kf2 {[%clk 0:00:24.2]} 33...
Rc7 {[%clk 0:00:13.2]} 34. Rd3 {[%clk 0:00:24.3]} 34... Rd7 {[%clk 0:00:13.3]}
35. Rxd7 {[%clk 0:00:23.2]} 35... Kxd7 {[%clk 0:00:14.2]} 36. g3 {[%clk
0:00:23.5]} 36... Ke6 {[%clk 0:00:14.2]} 37. Ke2 {[%clk 0:00:20.3]} 37... Bc6
{[%clk 0:00:14.5]} 38. Kd3 {[%clk 0:00:20.1]} 38... Kd6 {[%clk 0:00:13.1]} 39.
b4 {[%clk 0:00:20]} 39... Ke6 {[%clk 0:00:10.6]} 40. Ke2 {[%clk 0:00:19.9]}
40... Bb7 {[%clk 0:00:06.6]} 41. Kf2 {[%clk 0:00:19.6]} 41... Bd5 {[%clk
0:00:05.2]} 42. Ke2 {[%clk 0:00:18.9]} 42... Bc4+ {[%clk 0:00:05.3]} 43. Kf2
{[%clk 0:00:18.9]} 43... Kd6 {[%clk 0:00:05.5]} 44. Kg2 {[%clk 0:00:18.3]} 44...
Kc6 {[%clk 0:00:04.8]} 45. Kf2 {[%clk 0:00:18.4]} 45... Kb6 {[%clk 0:00:05.2]}
46. Kg2 {[%clk 0:00:17.6]} 46... a5 {[%clk 0:00:05.6]} 47. Kf2 {[%clk
0:00:17.4]} 47... axb4 {[%clk 0:00:05.5]} 48. axb4 {[%clk 0:00:18.3]} 48... Kc6
{[%clk 0:00:05.5]} 49. Kg2 {[%clk 0:00:18.2]} 49... Kd6 {[%clk 0:00:05.8]} 50.
Kf2 {[%clk 0:00:18.4]} 50... Bd3 {[%clk 0:00:05.3]} 51. Kg2 {[%clk 0:00:17.9]}
51... Be4+ {[%clk 0:00:05.3]} 52. Kf2 {[%clk 0:00:17.9]} 52... Bc6 {[%clk
0:00:05.2]} 53. Ke2 {[%clk 0:00:17.2]} 53... Ke6 {[%clk 0:00:05.3]} 54. Kf2
{[%clk 0:00:17.2]} 54... Kf6 {[%clk 0:00:04.7]} 55. Kf1 {[%clk 0:00:16]} 55...
f4 {[%clk 0:00:04.2]} 56. exf4 {[%clk 0:00:14.9]} 56... exf4 {[%clk 0:00:04.5]}
57. gxf4 {[%clk 0:00:08.9]} 57... Kf5 {[%clk 0:00:04.7]} 58. Kf2 {[%clk
0:00:07.6]} 58... Kxf4 {[%clk 0:00:04.7]} 59. Ne2+ {[%clk 0:00:07.7]} 59... Ke5
{[%clk 0:00:04.4]} 60. Ng3 {[%clk 0:00:07.9]} 60... Be8 {[%clk 0:00:03.7]} 61.
Ke3 {[%clk 0:00:08]} 61... Bg6 {[%clk 0:00:03.8]} 62. Nf1 {[%clk 0:00:05]} 62...
Kd5 {[%clk 0:00:02.6]} 63. Nd2 {[%clk 0:00:04.6]} 63... g3 {[%clk 0:00:01.9]}
64. Kf3 {[%clk 0:00:03.6]} 64... Kd4 {[%clk 0:00:02.8]} 65. Kxg3 {[%clk
0:00:03.7]} 65... Kc3 {[%clk 0:00:03.5]} 66. Nf3 {[%clk 0:00:03.3]} 66... Kxb4
{[%clk 0:00:03.8]} 67. Ne5 {[%clk 0:00:03.1]} 67... Be8 {[%clk 0:00:04.5]} 68.
Kf4 {[%clk 0:00:02.5]} 68... Kc3 {[%clk 0:00:05.4]} 69. Kg5 {[%clk 0:00:01.9]}
69... b4 {[%clk 0:00:06.3]} 70. Kf6 {[%clk 0:00:01.9]} 70... b3 {[%clk
0:00:07.2]} 71. Ke7 {[%clk 0:00:02]} 71... b2 {[%clk 0:00:07.6]} 72. Kxe8 {[%clk
0:00:01.8]} 72... b1=Q {[%clk 0:00:08.1]} 73. Kf7 {[%clk 0:00:02.2]} 73... Qf5+
{[%clk 0:00:07.9]} 74. Ke7 {[%clk 0:00:02.3]} 74... Qxe5+ {[%clk 0:00:08.3]} 0-1

[Event "Early-Titled-Tuesday-Blitz-January-16-2024"]
[Site "Chess.com"]
[Date "2024.01.16"]
[Round "3"]
[White "luckyswitchback"]
[Black "ATM622"]
[Result "0-1"]
[WhiteElo "2712"]
[BlackElo "2501"]
[TimeControl "180+1"]
[EndTime "8:31:22 PST"]
[Termination "ATM622 won by checkmate"]

1. e4 {[%clk 0:03:00.9]} 1... c6 {[%clk 0:02:31.7]} 2. d4 {[%clk 0:03:00.9]}
2... d5 {[%clk 0:02:28.7]} 3. e5 {[%clk 0:03:01]} 3... Bf5 {[%clk 0:02:28.5]} 4.
h4 {[%clk 0:03:01.6]} 4... h5 {[%clk 0:02:28.4]} 5. c4 {[%clk 0:03:02.2]} 5...
e6 {[%clk 0:02:28.8]} 6. Nc3 {[%clk 0:03:02.8]} 6... Nd7 {[%clk 0:02:28]} 7.
cxd5 {[%clk 0:03:03.3]} 7... exd5 {[%clk 0:02:26]} 8. Bd3 {[%clk 0:03:04]} 8...
Bxd3 {[%clk 0:02:25.4]} 9. Qxd3 {[%clk 0:03:04.7]} 9... Ne7 {[%clk 0:02:23.7]}
10. Nf3 {[%clk 0:03:03.6]} 10... b5 {[%clk 0:02:20.2]} 11. Bg5 {[%clk
0:02:59.5]} 11... b4 {[%clk 0:02:06.1]} 12. Ne2 {[%clk 0:02:58.5]} 12... c5
{[%clk 0:02:04.7]} 13. O-O {[%clk 0:02:55.6]} 13... c4 {[%clk 0:02:00.3]} 14.
Qe3 {[%clk 0:02:55.2]} 14... f6 {[%clk 0:01:58.5]} 15. exf6 {[%clk 0:02:48.1]}
15... gxf6 {[%clk 0:01:59.4]} 16. Bf4 {[%clk 0:02:34.9]} 16... Qb6 {[%clk
0:01:56.5]} 17. Ng3 {[%clk 0:02:32.8]} 17... O-O-O {[%clk 0:01:54.4]} 18. b3
{[%clk 0:02:28.8]} 18... c3 {[%clk 0:01:45.3]} 19. a3 {[%clk 0:02:28.9]} 19...
Ng6 {[%clk 0:01:41.4]} 20. Nf5 {[%clk 0:02:18.2]} 20... Nxf4 {[%clk 0:01:35.8]}
21. Qxf4 {[%clk 0:02:18.4]} 21... bxa3 {[%clk 0:01:35.5]} 22. Rfc1 {[%clk
0:02:08.6]} 22... Bb4 {[%clk 0:01:35]} 23. Ne3 {[%clk 0:02:04.8]} 23... Qe6
{[%clk 0:01:31.5]} 24. Nc2 {[%clk 0:01:43.2]} 24... Bd6 {[%clk 0:01:29.9]} 25.
Qe3 {[%clk 0:01:39.5]} 25... Qxe3 {[%clk 0:01:29.8]} 26. Nxe3 {[%clk 0:01:40.4]}
26... Nb6 {[%clk 0:01:23.9]} 27. Rxc3+ {[%clk 0:01:37.2]} 27... Kb7 {[%clk
0:01:24.4]} 28. Nf5 {[%clk 0:01:29.4]} 28... Bb4 {[%clk 0:01:23.3]} 29. Re3
{[%clk 0:01:22.7]} 29... Rhe8 {[%clk 0:01:23.3]} 30. Ne1 {[%clk 0:01:18]} 30...
Rxe3 {[%clk 0:01:20.5]} 31. fxe3 {[%clk 0:01:18.9]} 31... Bc3 {[%clk 0:01:20.9]}
32. Rd1 {[%clk 0:01:03.1]} 32... a2 {[%clk 0:01:20.6]} 33. Nc2 {[%clk
0:01:03.7]} 33... Ka6 {[%clk 0:01:15.1]} 34. Kf2 {[%clk 0:01:02.2]} 34... Rc8
{[%clk 0:01:12.7]} 35. Ke2 {[%clk 0:01:02.1]} 35... Ka5 {[%clk 0:01:09.4]} 36.
Kd3 {[%clk 0:00:59.4]} 36... Bb2 {[%clk 0:01:07.5]} 37. Nd6 {[%clk 0:00:53.6]}
37... Rxc2 {[%clk 0:01:00.9]} 38. Kxc2 {[%clk 0:00:54.5]} 38... a1=Q {[%clk
0:01:00.6]} 39. Rxa1+ {[%clk 0:00:55.1]} 39... Bxa1 {[%clk 0:01:00.4]} 40. Ne8
{[%clk 0:00:55.8]} 40... f5 {[%clk 0:00:54.9]} 41. Nf6 {[%clk 0:00:55.6]} 41...
f4 {[%clk 0:00:53.5]} 42. exf4 {[%clk 0:00:49.4]} 42... Bxd4 {[%clk 0:00:53.8]}
43. Nxh5 {[%clk 0:00:50.1]} 43... Kb4 {[%clk 0:00:52.5]} 44. g4 {[%clk
0:00:50.2]} 44... Bf2 {[%clk 0:00:48.3]} 45. g5 {[%clk 0:00:49.1]} 45... Bxh4
{[%clk 0:00:48.4]} 46. g6 {[%clk 0:00:49.5]} 46... Nc8 {[%clk 0:00:40.1]} 47. g7
{[%clk 0:00:37.3]} 47... Ne7 {[%clk 0:00:40.3]} 48. f5 {[%clk 0:00:32.2]} 48...
Ng8 {[%clk 0:00:33.4]} 49. Nf4 {[%clk 0:00:31.1]} 49... Kc5 {[%clk 0:00:26.8]}
50. Kd3 {[%clk 0:00:30.3]} 50... Bf6 {[%clk 0:00:21.1]} 51. Ne6+ {[%clk
0:00:22.5]} 51... Kd6 {[%clk 0:00:20.5]} 52. Ke3 {[%clk 0:00:20.1]} 52... Ke5
{[%clk 0:00:20]} 53. Nd4 {[%clk 0:00:19.5]} 53... Bg5+ {[%clk 0:00:19.6]} 54.
Kd3 {[%clk 0:00:19.6]} 54... Kf6 {[%clk 0:00:19.8]} 55. Nc6 {[%clk 0:00:18.3]}
55... Kxf5 {[%clk 0:00:16.6]} 56. Nxa7 {[%clk 0:00:18.1]} 56... Bf6 {[%clk
0:00:12.4]} 57. b4 {[%clk 0:00:17.6]} 57... Bxg7 {[%clk 0:00:12.4]} 58. b5
{[%clk 0:00:18.2]} 58... Be5 {[%clk 0:00:09]} 59. Nc6 {[%clk 0:00:17.7]} 59...
Bc7 {[%clk 0:00:08.4]} 60. Kd4 {[%clk 0:00:14.6]} 60... Ke6 {[%clk 0:00:08.5]}
61. Nb4 {[%clk 0:00:11.5]} 61... Bb6+ {[%clk 0:00:08.2]} 62. Kd3 {[%clk
0:00:12]} 62... Ne7 {[%clk 0:00:07.9]} 63. Nxd5 {[%clk 0:00:07.9]} 63... Kxd5
{[%clk 0:00:07.7]} 64. Kc3 {[%clk 0:00:08.5]} 64... Kc5 {[%clk 0:00:07.9]} 65.
Kd3 {[%clk 0:00:09.4]} 65... Kxb5 {[%clk 0:00:08.4]} 66. Ke4 {[%clk 0:00:10.3]}
66... Kc6 {[%clk 0:00:08.9]} 67. Ke5 {[%clk 0:00:11.2]} 67... Nd5 {[%clk
0:00:09.4]} 68. Ke6 {[%clk 0:00:11.2]} 68... Bc7 {[%clk 0:00:09.8]} 69. Kf5
{[%clk 0:00:11.6]} 69... Kd6 {[%clk 0:00:09.8]} 70. Ke4 {[%clk 0:00:12.5]} 70...
Bb6 {[%clk 0:00:09.3]} 71. Kf5 {[%clk 0:00:12.8]} 71... Ne7+ {[%clk 0:00:08]}
72. Ke4 {[%clk 0:00:13.7]} 72... Ke6 {[%clk 0:00:08.5]} 73. Kf4 {[%clk
0:00:13.9]} 73... Kd5 {[%clk 0:00:05.8]} 74. Kf3 {[%clk 0:00:14.2]} 74... Ke5
{[%clk 0:00:05.9]} 75. Ke2 {[%clk 0:00:14.8]} 75... Ke4 {[%clk 0:00:06.2]} 76.
Kd2 {[%clk 0:00:15.7]} 76... Nd5 {[%clk 0:00:06.7]} 77. Kc2 {[%clk 0:00:16.3]}
77... Kd4 {[%clk 0:00:07.1]} 78. Kb3 {[%clk 0:00:17.2]} 78... Kd3 {[%clk
0:00:07.1]} 79. Ka4 {[%clk 0:00:17.6]} 79... Kc4 {[%clk 0:00:07.5]} 80. Ka3
{[%clk 0:00:18.2]} 80... Bd4 {[%clk 0:00:04.7]} 81. Ka4 {[%clk 0:00:16.9]} 81...
Bb6 {[%clk 0:00:02.7]} 82. Ka3 {[%clk 0:00:16.8]} 82... Ne3 {[%clk 0:00:03.1]}
83. Ka4 {[%clk 0:00:16]} 83... Nd1 {[%clk 0:00:02.5]} 84. Ka3 {[%clk 0:00:16.2]}
84... Bc7 {[%clk 0:00:02.3]} 85. Ka4 {[%clk 0:00:17.1]} 85... Nb2+ {[%clk
0:00:02.5]} 86. Ka3 {[%clk 0:00:17.6]} 86... Nd3 {[%clk 0:00:03]} 87. Ka4 {[%clk
0:00:18.2]} 87... Nc5+ {[%clk 0:00:03.4]} 88. Ka3 {[%clk 0:00:18.7]} 88... Kc3
{[%clk 0:00:03.9]} 89. Ka2 {[%clk 0:00:18.8]} 89... Kc2 {[%clk 0:00:04.4]} 90.
Ka3 {[%clk 0:00:19.5]} 90... Ba5 {[%clk 0:00:04.9]} 91. Ka2 {[%clk 0:00:19.7]}
91... Bb4 {[%clk 0:00:05.4]} 92. Ka1 {[%clk 0:00:19.9]} 92... Nb3+ {[%clk
0:00:05.9]} 93. Ka2 {[%clk 0:00:20.8]} 93... Nc1+ {[%clk 0:00:06.4]} 94. Ka1
{[%clk 0:00:21.3]} 94... Bc3# {[%clk 0:00:06.9]} 0-1

[Event "Early-Titled-Tuesday-Blitz-January-16-2024"]
[Site "Chess.com"]
[Date "2024.01.16"]
[Round "3"]
[White "topce"]
[Black "Zavgorodniy_Sergiy"]
[Result "1/2-1/2"]
[WhiteElo "2372"]
[BlackElo "2591"]
[TimeControl "180+1"]
[EndTime "8:31:38 PST"]
[Termination "Game drawn - insufficient material"]

1. c4 {[%clk 0:03:00.9]} 1... e5 {[%clk 0:02:59.7]} 2. d3 {[%clk 0:02:58]} 2...
Nf6 {[%clk 0:02:57.3]} 3. Nc3 {[%clk 0:02:57.2]} 3... Bb4 {[%clk 0:02:56.5]} 4.
Bd2 {[%clk 0:02:57]} 4... O-O {[%clk 0:02:52.8]} 5. a3 {[%clk 0:02:57]} 5...
Bxc3 {[%clk 0:02:52.2]} 6. Bxc3 {[%clk 0:02:57.9]} 6... Re8 {[%clk 0:02:52.5]}
7. e3 {[%clk 0:02:55.9]} 7... d5 {[%clk 0:02:12.3]} 8. cxd5 {[%clk 0:02:51]}
8... Nxd5 {[%clk 0:02:11.7]} 9. Rc1 {[%clk 0:02:42.4]} 9... c5 {[%clk
0:02:06.9]} 10. Bd2 {[%clk 0:02:29.8]} 10... b6 {[%clk 0:01:45.2]} 11. Nf3
{[%clk 0:02:26.5]} 11... Ba6 {[%clk 0:01:15.9]} 12. Be2 {[%clk 0:02:22.1]} 12...
Nf6 {[%clk 0:01:11.1]} 13. Qc2 {[%clk 0:02:20.1]} 13... e4 {[%clk 0:01:10.4]}
14. dxe4 {[%clk 0:02:15.8]} 14... Bxe2 {[%clk 0:01:10.9]} 15. Kxe2 {[%clk
0:02:16]} 15... Nxe4 {[%clk 0:01:11.6]} 16. Rhd1 {[%clk 0:02:14.8]} 16... Qe7
{[%clk 0:01:08.4]} 17. Bc3 {[%clk 0:02:08.1]} 17... Nd7 {[%clk 0:01:04.3]} 18.
b3 {[%clk 0:01:37.6]} 18... Nf8 {[%clk 0:01:03.3]} 19. Bb2 {[%clk 0:01:36.6]}
19... Rad8 {[%clk 0:00:59.5]} 20. Kf1 {[%clk 0:01:35.8]} 20... Qe6 {[%clk
0:00:54.8]} 21. Rxd8 {[%clk 0:01:26.7]} 21... Rxd8 {[%clk 0:00:55.7]} 22. Rd1
{[%clk 0:01:25.7]} 22... Rd5 {[%clk 0:00:56.3]} 23. Rxd5 {[%clk 0:01:11.1]}
23... Qxd5 {[%clk 0:00:57.2]} 24. Ke2 {[%clk 0:01:10.1]} 24... Ne6 {[%clk
0:00:49.7]} 25. Qd3 {[%clk 0:01:09]} 25... Qxd3+ {[%clk 0:00:49.1]} 26. Kxd3
{[%clk 0:01:09.8]} 26... Nxf2+ {[%clk 0:00:49.7]} 27. Ke2 {[%clk 0:01:09.5]}
27... Ne4 {[%clk 0:00:49.3]} 28. Ne5 {[%clk 0:01:08.6]} 28... Nd8 {[%clk
0:00:41.2]} 29. Kd3 {[%clk 0:01:04.4]} 29... Nd6 {[%clk 0:00:40.7]} 30. Nd7
{[%clk 0:01:01.4]} 30... f6 {[%clk 0:00:38.9]} 31. e4 {[%clk 0:01:00.4]} 31...
Kf7 {[%clk 0:00:37.2]} 32. e5 {[%clk 0:01:00.7]} 32... fxe5 {[%clk 0:00:37.1]}
33. Nxe5+ {[%clk 0:00:53.4]} 33... Ke6 {[%clk 0:00:36.3]} 34. Nc4 {[%clk
0:00:48]} 34... g6 {[%clk 0:00:31.3]} 35. Ne5 {[%clk 0:00:42]} 35... Kd5 {[%clk
0:00:28.8]} 36. Ng4 {[%clk 0:00:38.8]} 36... Ke6 {[%clk 0:00:21.4]} 37. Nf6
{[%clk 0:00:37.4]} 37... h5 {[%clk 0:00:20.5]} 38. g4 {[%clk 0:00:31.1]} 38...
hxg4 {[%clk 0:00:19.4]} 39. Nxg4 {[%clk 0:00:30.8]} 39... Nc6 {[%clk 0:00:19.6]}
40. Ne3 {[%clk 0:00:24.8]} 40... b5 {[%clk 0:00:19.5]} 41. Bc3 {[%clk
0:00:22.8]} 41... Nf5 {[%clk 0:00:18.7]} 42. Nxf5 {[%clk 0:00:18.7]} 42... Kxf5
{[%clk 0:00:18.2]} 43. Be1 {[%clk 0:00:15.4]} 43... Ne5+ {[%clk 0:00:13.4]} 44.
Kc3 {[%clk 0:00:15.2]} 44... Ke4 {[%clk 0:00:12.8]} 45. Bg3 {[%clk 0:00:15.3]}
45... Kd5 {[%clk 0:00:12.2]} 46. Bf2 {[%clk 0:00:13.7]} 46... a6 {[%clk
0:00:11.7]} 47. Bg3 {[%clk 0:00:13.7]} 47... Nf3 {[%clk 0:00:11.9]} 48. Bb8
{[%clk 0:00:13.2]} 48... Nd4 {[%clk 0:00:11.3]} 49. a4 {[%clk 0:00:12]} 49...
b4+ {[%clk 0:00:09.2]} 50. Kb2 {[%clk 0:00:12.4]} 50... Ne6 {[%clk 0:00:09.5]}
51. Bg3 {[%clk 0:00:08.3]} 51... Ke4 {[%clk 0:00:10]} 52. Bb8 {[%clk 0:00:08.8]}
52... Kd3 {[%clk 0:00:10.3]} 53. Be5 {[%clk 0:00:07.8]} 53... c4 {[%clk
0:00:10.4]} 54. bxc4 {[%clk 0:00:07.6]} 54... Kxc4 {[%clk 0:00:11.3]} 55. Bd6
{[%clk 0:00:07.5]} 55... Nc5 {[%clk 0:00:11.5]} 56. a5 {[%clk 0:00:06.8]} 56...
Ne4 {[%clk 0:00:10.4]} 57. Bc7 {[%clk 0:00:07]} 57... Nc3 {[%clk 0:00:10.4]} 58.
Bd8 {[%clk 0:00:06.6]} 58... Nd5 {[%clk 0:00:10.3]} 59. h4 {[%clk 0:00:06.4]}
59... Kb5 {[%clk 0:00:10.7]} 60. Kb3 {[%clk 0:00:06.4]} 60... Nc3 {[%clk
0:00:10.9]} 61. Be7 {[%clk 0:00:05.3]} 61... Nd5 {[%clk 0:00:10.6]} 62. Bd8
{[%clk 0:00:05.7]} 62... Kc5 {[%clk 0:00:10]} 63. Bg5 {[%clk 0:00:05.3]} 63...
Kd4 {[%clk 0:00:10.1]} 64. Bd8 {[%clk 0:00:06]} 64... Kd3 {[%clk 0:00:09.7]} 65.
Bg5 {[%clk 0:00:06.1]} 65... Ke4 {[%clk 0:00:09.6]} 66. Bd8 {[%clk 0:00:06.8]}
66... Kd4 {[%clk 0:00:09.5]} 67. Bg5 {[%clk 0:00:06.4]} 67... Kc5 {[%clk
0:00:08.2]} 68. Bd8 {[%clk 0:00:07.2]} 68... Nc3 {[%clk 0:00:07.4]} 69. Be7+
{[%clk 0:00:06]} 69... Kb5 {[%clk 0:00:08]} 70. Bxb4 {[%clk 0:00:06.7]} 70...
Ne4 {[%clk 0:00:08.1]} 71. Be1 {[%clk 0:00:06.6]} 71... Nc5+ {[%clk 0:00:07.7]}
72. Ka3 {[%clk 0:00:06.4]} 72... Nb7 {[%clk 0:00:07.7]} 73. Kb3 {[%clk
0:00:05.8]} 73... Nxa5+ {[%clk 0:00:08.4]} 74. Ka3 {[%clk 0:00:06]} 74... Nc4+
{[%clk 0:00:08.6]} 75. Ka2 {[%clk 0:00:05.9]} 75... Kc5 {[%clk 0:00:08.8]} 76.
Bf2+ {[%clk 0:00:06]} 76... Kd5 {[%clk 0:00:09.1]} 77. Kb3 {[%clk 0:00:06.6]}
77... Nd2+ {[%clk 0:00:09.3]} 78. Ka4 {[%clk 0:00:06.3]} 78... Ne4 {[%clk
0:00:09.9]} 79. Be1 {[%clk 0:00:06.8]} 79... Nd6 {[%clk 0:00:07.5]} 80. Ka5
{[%clk 0:00:07.3]} 80... Nf5 {[%clk 0:00:07.8]} 81. Kxa6 {[%clk 0:00:07.3]}
81... Ke4 {[%clk 0:00:08.5]} 82. Kb6 {[%clk 0:00:06.9]} 82... Nd4 {[%clk
0:00:09]} 83. Kc7 {[%clk 0:00:06.7]} 83... Nf3 {[%clk 0:00:09.5]} 84. Bf2 {[%clk
0:00:06.8]} 84... Kf5 {[%clk 0:00:10.2]} 85. Kd7 {[%clk 0:00:06.8]} 85... Kg4
{[%clk 0:00:10.8]} 86. Ke6 {[%clk 0:00:07.2]} 86... Nxh4 {[%clk 0:00:11.3]} 87.
Ke5 {[%clk 0:00:06.4]} 87... g5 {[%clk 0:00:11.3]} 88. Ke4 {[%clk 0:00:07]}
88... Nf5 {[%clk 0:00:09.9]} 89. Bb6 {[%clk 0:00:07.9]} 89... Ng3+ {[%clk
0:00:10]} 90. Ke3 {[%clk 0:00:07.5]} 90... Kh3 {[%clk 0:00:10.4]} 91. Kf2 {[%clk
0:00:08.4]} 91... g4 {[%clk 0:00:09.6]} 92. Kg1 {[%clk 0:00:09.3]} 92... Ne4
{[%clk 0:00:10.1]} 93. Bc7 {[%clk 0:00:09.6]} 93... Kh4 {[%clk 0:00:10.4]} 94.
Bb8 {[%clk 0:00:09.9]} 94... Kh5 {[%clk 0:00:11.1]} 95. Bc7 {[%clk 0:00:10.5]}
95... Kg6 {[%clk 0:00:11.8]} 96. Bb8 {[%clk 0:00:11.1]} 96... Kf5 {[%clk
0:00:12.7]} 97. Kg2 {[%clk 0:00:10.9]} 97... Ke6 {[%clk 0:00:13.2]} 98. Bc7
{[%clk 0:00:11.4]} 98... Nc5 {[%clk 0:00:13.7]} 99. Bb8 {[%clk 0:00:12.3]} 99...
Na6 {[%clk 0:00:13.7]} 100. Kg3 {[%clk 0:00:11.6]} 100... Nxb8 {[%clk
0:00:12.9]} 101. Kxg4 {[%clk 0:00:11.6]} 1/2-1/2